bitfinex-derivatives/quotes_ETHF0:USTF0_20251223
["timestamp","ask_amount","ask_price","bid_price","bid_amount"]
[1766503320259,0.00512461,2926.7,2926.1,0.00512461]
[1766503320450,3.58787,2927.9,2926.1,0.00512461]
[1766503320451,8.544,2928.2,2926.5,1.83527146]
[1766503320652,8.544,2928.2,2926.8,1.83527146]
[1766503320849,10.37927146,2928.2,2926.2,5.25227146]
[1766503321063,1.83527146,2927.6,2926.1,0.02452461]
[1766503321264,1.83527146,2927.6,2926.1,0.00512461]
[1766503321566,0.00512461,2927.1,2926.1,0.00512461]
[1766503322662,0.00335363,2927.6,2926.3,1.83527146]
[1766503322862,0.00335363,2927.6,2926.1,0.00512461]
[1766503323062,0.00753912,2927.6,2926.1,0.00512461]
[1766503323559,0.17842912,2927.6,2926.1,0.00512461]
[1766503323761,0.00512461,2927.1,2926.1,0.00512461]
[1766503324666,0.00418549,2926.9,2926.1,0.00512461]
[1766503325066,0.00512461,2927.1,2926.1,0.00512461]
[1766503325266,0.00418549,2927.0,2926.1,0.00512461]
[1766503325465,0.00512461,2927.1,2926.1,0.00512461]
[1766503325666,0.00512461,2927.1,2926.3,1.83527146]
[1766503326557,0.00335363,2927.6,2926.3,1.83527146]
[1766503327063,0.17087,2927.9,2926.3,1.83527146]
[1766503327064,0.18377,2927.9,2926.3,1.83527146]
[1766503327262,0.17087,2927.9,2926.6,1.83527146]
[1766503327672,0.00512461,2927.5,2926.6,1.83527146]
[1766503327871,0.00512461,2927.5,2926.5,0.0129]
[1766503328170,0.00418549,2927.4,2926.1,0.00512461]
[1766503329166,0.00898748,2927.5,2926.1,0.00512461]
[1766503329568,0.00898748,2927.5,2926.4,2.0848553]
[1766503329967,0.17084,2928.4,2926.4,2.0848553]
[1766503330467,44.2298,2928.5,2926.4,2.0848553]
[1766503330773,44.217,2928.5,2926.3,2.0976553]
[1766503330957,0.00512461,2927.7,2926.3,2.0848553]
[1766503333169,3.41985725,2928.5,2926.2,0.0127]
[1766503333170,0.00285725,2928.5,2927.1,2.0848553]
[1766503333369,0.00285725,2928.5,2927.5,2.0848553]
[1766503333569,0.17079,2929.3,2928.0,2.0848553]
[1766503333975,0.00341644,2928.9,2928.4,0.00512461]
[1766503334274,0.18359,2929.3,2928.4,0.00512461]
[1766503334473,0.00418549,2928.8,2928.4,0.00756792]
[1766503334670,0.00245839,2929.3,2928.4,0.00756792]
[1766503334967,0.00245839,2929.3,2928.4,3.42456792]
[1766503336471,3.417,2930.1,2928.4,3.42456792]
[1766503336976,0.17077,2929.7,2928.4,3.42456792]
[1766503337270,0.17487429,2929.7,2928.4,3.42456792]
[1766503337866,0.17077,2929.6,2928.4,3.42456792]
[1766503339175,0.17077,2929.6,2928.4,0.00756792]
[1766503341078,0.00410429,2929.7,2928.4,0.00756792]
[1766503343876,0.00410429,2929.7,2928.4,2.09242322]
[1766503344575,0.00410429,2929.7,2928.4,0.00756792]
[1766503345673,0.00410429,2929.7,2928.7,2.0848553]
[1766503345870,0.00410429,2929.7,2928.8,3.415]
[1766503346270,0.17073,2930.0,2928.8,3.415]
[1766503346669,0.17074,2929.9,2928.8,3.415]
[1766503347171,0.17401616,2929.9,2928.8,3.415]
[1766503347370,0.17401616,2929.9,2928.8,3.3817]
[1766503347371,0.17076,2929.5,2928.8,3.3817]
[1766503347979,0.0099,2929.8,2928.8,3.3817]
[1766503348282,0.00327616,2929.9,2928.8,3.3817]
[1766503348579,0.00327616,2929.9,2928.4,0.00756792]
[1766503349481,0.17075,2929.6,2928.4,0.00756792]
[1766503349870,0.17076,2929.5,2928.4,0.00756792]
[1766503350178,0.17077,2929.4,2928.4,0.00756792]
[1766503350379,0.17078,2929.1,2928.4,0.00756792]
[1766503352179,0.17079,2929.0,2928.4,9.52e-06]
[1766503352382,0.17079,2929.0,2927.5,3.415]
[1766503352883,40.97079,2929.0,2927.5,3.415]
[1766503353187,0.17079,2928.9,2927.5,3.415]
[1766503353382,0.00512461,2928.5,2927.9,0.00512461]
[1766503353882,0.00512461,2928.5,2927.9,0.00161662]
[1766503354276,0.17083,2928.3,2927.5,0.00265115]
[1766503355380,0.00512461,2928.5,2927.6,0.00512461]
[1766503357581,0.17594461,2928.5,2927.6,0.00512461]
[1766503358484,0.17082,2928.4,2927.6,0.00512461]
[1766503358885,0.17083,2928.3,2927.6,0.00512461]
[1766503359983,0.00512461,2928.5,2927.6,0.00512461]
[1766503360690,0.17083,2928.2,2927.6,0.00512461]
[1766503363791,0.00512461,2928.5,2927.6,0.00512461]
[1766503364392,0.1708,2928.9,2927.6,0.00512461]
[1766503365288,0.00512461,2928.5,2927.6,0.00512461]
[1766503365484,0.17082,2928.4,2927.6,0.00512461]
[1766503366086,0.17083,2928.3,2927.6,0.00512461]
[1766503366289,0.00512461,2928.5,2925.9,2.0848553]
[1766503366489,0.00512461,2928.5,2925.2,34.162]
[1766503366490,0.17089,2927.2,2926.0,3.416]
[1766503366686,0.17092,2926.8,2925.3,3.416]
[1766503366889,2.0848553,2927.1,2925.3,3.416]
[1766503367082,0.0025,2926.9,2925.3,3.416]
[1766503367381,0.00512461,2926.4,2925.8,0.00512461]
[1766503370791,0.00512461,2926.4,2925.8,0.00322461]
[1766503371596,2.2558153,2926.3,2925.3,0.00348584]
[1766503372198,0.17097,2926.1,2925.3,0.00348584]
[1766503372394,2.0848553,2926.3,2925.3,0.00348584]
[1766503372395,0.17098,2926.0,2925.3,0.00348584]
[1766503372596,10.6278553,2926.3,2923.8,0.003]
[1766503372791,0.171,2925.7,2923.9,3.417]
[1766503373493,0.171,2925.7,2923.9,3.41954569]
[1766503373698,0.171,2925.7,2924.5,0.00512461]
[1766503374995,3.417,2925.6,2924.5,0.00512461]
[1766503376298,0.17102,2925.3,2924.5,0.00512461]
[1766503377096,0.17104,2925.0,2923.9,0.00254569]
[1766503377297,3.417,2925.6,2923.9,0.00254569]
[1766503377298,0.17105,2924.9,2923.9,0.00254569]
[1766503377507,0.17105,2924.8,2923.9,0.00254569]
[1766503377704,0.00439609,2924.8,2923.9,0.00254569]
[1766503378206,0.00512461,2924.6,2924.1,0.00512461]
[1766503378806,3.417,2925.6,2924.1,0.00512461]
[1766503379801,0.00512461,2925.1,2924.1,0.00512461]
[1766503380908,3.41939387,2925.6,2924.1,0.00512461]
[1766503381413,0.17101,2925.5,2924.1,0.00512461]
[1766503382003,0.00512461,2925.1,2924.1,0.00512461]
[1766503383402,0.17615461,2925.1,2924.1,0.00512461]
[1766503384106,0.00512461,2925.1,2924.1,0.00512461]
[1766503384797,3.41939387,2925.6,2924.1,0.00512461]
[1766503384998,0.17097,2926.1,2924.5,2.0848553]
[1766503385806,0.00512461,2925.6,2925.0,0.00512461]
[1766503386006,0.00863299,2925.6,2925.0,0.00512461]
[1766503386409,0.17097,2926.1,2925.0,0.00512461]
[1766503387303,0.17099,2925.8,2925.0,2.461e-05]
[1766503388306,0.00512461,2925.7,2925.0,2.461e-05]
[1766503388502,0.00512461,2925.7,2924.0,5.26116892]
[1766503388706,0.00512461,2925.7,2924.4,1.84216892]
[1766503389514,0.00512461,2925.7,2924.8,0.00512461]
[1766503389808,0.00512461,2925.7,2924.8,3.42412461]
[1766503390412,0.17104,2925.0,2923.9,0.00254569]
[1766503390608,11.974,2925.6,2923.9,0.00254569]
[1766503391105,40.8,2925.5,2923.9,0.00254569]
[1766503391310,40.8,2925.5,2924.4,0.00512461]
[1766503391515,40.97101,2925.5,2924.4,0.00512461]
[1766503392414,40.8,2925.5,2923.9,0.00254569]
[1766503392606,1.84216892,2925.0,2923.9,0.00254569]
[1766503392813,2.01322892,2924.6,2923.9,4.569e-05]
[1766503393012,2.01322892,2924.6,2923.1,3.419]
[1766503393519,0.00512461,2924.1,2923.6,0.00512461]
[1766503393912,0.00512461,2924.1,2923.6,0.00841182]
[1766503394211,0.00512461,2924.1,2923.0,0.0008]
[1766503394415,0.00512461,2924.1,2923.0,3.4198]
[1766503395316,0.17111,2923.8,2923.0,0.00304123]
[1766503395512,0.17503768,2923.8,2923.0,0.00304123]
[1766503396414,0.17503768,2923.8,2923.1,0.00341644]
[1766503396618,0.17503768,2923.8,2922.3,0.0399]
[1766503396815,0.17112,2923.7,2922.1,3.6272072]
[1766503397218,0.17114,2923.3,2922.1,3.6272072]
[1766503397418,0.17115,2923.2,2922.1,3.6272072]
[1766503397824,0.17115,2923.2,2922.1,3.63091779]
[1766503398012,0.17116,2923.0,2922.1,0.21191779]
[1766503398209,0.00392768,2923.8,2922.1,0.21191779]
[1766503398210,2.01333892,2922.8,2922.1,0.15871779]
[1766503398419,1.84216892,2922.8,2921.1,3.42]
[1766503398715,0.00513355,2922.2,2921.1,3.42]
[1766503399018,0.00513355,2922.2,2921.1,5.26216892]
[1766503399217,0.00513355,2922.2,2921.1,3.42]
[1766503399418,0.00513355,2922.2,2921.1,3.42416443]
[1766503401721,0.00513355,2922.2,2921.1,0.00416443]
[1766503402525,1.84216892,2921.8,2921.1,0.00416443]
[1766503403119,1.84216892,2921.8,2920.5,0.0442]
[1766503403416,0.21552,2921.9,2920.4,0.0443]
[1766503403624,0.17122,2921.9,2920.5,3.421]
[1766503404020,0.17122,2921.9,2920.5,3.42449816]
[1766503404427,0.00513355,2922.2,2920.5,3.42449816]
[1766503404724,0.00513355,2922.2,2921.1,1.84216892]
[1766503405120,0.00513355,2922.2,2920.9,1.84216892]
[1766503405823,0.00513355,2922.2,2920.8,1.84216892]
[1766503406124,0.00513355,2922.2,2921.1,1.84216892]
[1766503406627,0.17118,2922.6,2921.4,1.84216892]
[1766503406831,0.17118,2922.6,2921.4,3.422]
[1766503407512,0.00513355,2922.3,2921.7,0.00513355]
[1766503407721,0.00513355,2922.3,2921.7,3.355e-05]
[1766503409821,8.553,2923.0,2921.7,3.355e-05]
[1766503410420,0.17116,2922.9,2921.7,3.355e-05]
[1766503410625,0.17117,2922.8,2921.7,3.355e-05]
[1766503410825,0.00513355,2922.5,2921.7,3.355e-05]
[1766503411329,3.421,2923.2,2921.8,1.84216892]
[1766503411526,3.59214,2923.2,2921.7,3.355e-05]
[1766503412228,0.00513355,2922.7,2921.7,3.355e-05]
[1766503413724,0.17119,2922.4,2921.7,3.355e-05]
[1766503413930,0.1712,2922.3,2921.7,3.355e-05]
[1766503414126,0.1712,2922.2,2921.7,3.355e-05]
[1766503414635,0.00513355,2922.7,2921.7,3.355e-05]
[1766503415634,0.00513355,2922.7,2921.7,1.84220247]
[1766503415836,0.17629355,2922.7,2921.7,3.355e-05]
[1766503416732,0.17112,2923.4,2922.0,1.84216892]
[1766503417332,0.0437,2923.5,2921.7,1.84220247]
[1766503417333,1.88586892,2923.5,2921.7,1.84220247]
[1766503417526,0.17113,2923.1,2921.8,3.422]
[1766503417733,0.00513355,2922.7,2921.8,3.422]
[1766503418734,0.17113,2923.1,2922.0,1.84216892]
[1766503418932,40.9711,2923.7,2922.0,1.84216892]
[1766503419137,0.1711,2923.7,2922.0,1.84216892]
[1766503419435,0.17112,2923.6,2921.9,0.0439]
[1766503419636,0.00513355,2923.0,2921.8,5.26416892]
[1766503421134,0.17113,2923.5,2922.1,1.84216892]
[1766503421530,0.17113,2923.5,2922.1,1.83567283]
[1766503422439,0.17113,2923.5,2922.0,0.044]
[1766503422440,0.00392768,2923.8,2922.7,1.84216892]
[1766503422639,0.00392768,2923.8,2922.7,3.4244922]
[1766503423341,0.00335906,2923.5,2922.7,3.4244922]
[1766503424934,0.17448906,2923.5,2922.7,3.4244922]
[1766503425442,0.17113,2923.4,2922.7,0.0024922]
[1766503425740,0.17113,2923.4,2922.1,3.422]
[1766503426639,0.17113,2923.4,2922.1,3.42586232]
[1766503428338,1.84216892,2923.1,2922.1,0.00386232]
[1766503428737,0.17116,2922.9,2922.1,0.00386232]
[1766503430339,0.17117,2922.8,2922.1,0.00386232]
[1766503431148,0.17117,2922.7,2922.1,0.00386232]
[1766503434153,0.17115,2923.2,2922.1,0.00386232]
[1766503435354,0.17115,2923.1,2922.1,0.00386232]
[1766503435543,42.64552798,2923.5,2922.1,0.00386232]
[1766503435544,0.17116,2923.0,2922.1,0.00386232]
[1766503438554,42.64552798,2923.5,2922.1,0.00386232]
[1766503438555,0.00335906,2923.5,2922.1,0.00386232]
[1766503438755,0.17113,2923.4,2922.1,0.00386232]
[1766503439849,0.17113,2923.4,2922.2,1.84216892]
[1766503440050,0.17113,2923.4,2922.3,3.422]
[1766503440356,2.768e-05,2923.8,2922.7,1.84216892]
[1766503440555,2.768e-05,2923.8,2922.3,7.87]
[1766503441046,2.768e-05,2923.8,2922.7,1.84216892]
[1766503441354,2.768e-05,2923.8,2923.0,1.84216892]
[1766503441651,8.556,2924.7,2923.1,3.422]
[1766503441652,0.17107,2924.5,2923.1,3.422]
[1766503441850,0.17619,2924.1,2923.1,3.422]
[1766503442043,0.1711,2924.0,2923.1,3.422]
[1766503442448,0.17406613,2924.0,2923.1,3.422]
[1766503442956,0.17406613,2924.0,2923.3,0.00513355]
[1766503443161,0.00296613,2924.0,2923.3,0.00513355]
[1766503445759,0.00296613,2924.0,2923.1,3.422]
[1766503446760,0.00296613,2924.0,2923.3,0.00513355]
[1766503447251,0.00296613,2924.0,2923.3,3.355e-05]
[1766503448159,0.17406613,2924.0,2923.3,3.355e-05]
[1766503448361,1.84216892,2923.6,2921.8,3.04038669]
[1766503448661,0.17113,2923.5,2922.1,3.42586232]
[1766503449354,0.17113,2923.5,2922.5,0.00513355]
[1766503450862,0.0434,2923.6,2922.5,3.355e-05]
[1766503451062,10.64570723,2923.8,2922.1,0.00386232]
[1766503451464,0.17116,2923.0,2922.1,0.00386232]
[1766503451659,0.17117,2922.7,2921.7,0.0065]
[1766503451862,0.17117,2922.7,2921.6,3.422]
[1766503452166,0.00513355,2922.5,2921.9,0.00513355]
[1766503452368,0.00513355,2922.5,2921.9,3.355e-05]
[1766503452558,0.00513355,2922.5,2921.9,0.00390974]
[1766503453566,0.00513355,2922.5,2921.9,9.74e-06]
[1766503453761,0.00513355,2922.5,2920.9,1.033]
[1766503454064,0.1712,2922.2,2920.9,1.033]
[1766503454465,0.1712,2922.2,2921.3,0.00513355]
[1766503454660,0.1712,2922.2,2921.3,0.00882877]
[1766503456871,0.17121,2922.1,2921.3,0.00882877]
[1766503457072,2.09070723,2922.0,2920.4,0.0063]
[1766503457272,0.17123,2921.7,2920.0,3.422]
[1766503457570,0.17123,2921.7,2920.0,5.51270723]
[1766503458366,0.00513355,2921.1,2920.6,0.00342242]
[1766503459269,0.17522939,2921.7,2920.6,0.00342242]
[1766503459973,0.17124,2921.6,2920.6,0.00342242]
[1766503460274,0.00513355,2921.4,2920.6,0.00342242]
[1766503463376,0.00399939,2921.7,2920.6,0.00342242]
[1766503464470,0.00513355,2921.4,2920.6,0.00342242]
[1766503468582,3.355e-05,2921.4,2920.6,0.00342242]
[1766503471072,5.51270723,2922.6,2920.9,2.09070723]
[1766503471073,0.17118,2922.6,2920.9,2.09070723]
[1766503471274,8.559,2923.2,2921.3,2.09070723]
[1766503471479,0.002,2922.8,2921.3,2.09070723]
[1766503471775,8.559,2923.2,2921.3,2.09070723]
[1766503472081,0.00513355,2922.5,2921.2,0.002]
[1766503472270,0.00513355,2922.5,2921.0,3.423]
[1766503473174,0.17632355,2922.5,2921.0,3.423]
[1766503473378,0.00513355,2922.5,2921.0,3.423]
[1766503477682,0.00513355,2922.5,2920.6,0.00342242]
[1766503477683,0.00513355,2922.5,2921.1,3.423]
[1766503479486,0.17119,2922.4,2920.9,3.423]
[1766503481784,0.00513355,2922.5,2921.2,2.09070723]
[1766503482175,0.00513355,2922.5,2920.9,3.423]
[1766503482774,0.00513355,2922.5,2921.2,2.09070723]
[1766503485990,0.00513355,2922.5,2920.9,3.423]
[1766503486186,0.00513355,2922.5,2921.0,2.09070723]
[1766503487288,8.56246763,2923.2,2922.0,2.09070723]
[1766503487289,0.00346763,2923.2,2922.0,2.09070723]
[1766503487494,0.1711,2924.0,2922.1,3.423]
[1766503487682,2.09070723,2924.0,2921.4,5.13109392]
[1766503487991,0.17113,2923.4,2921.5,7.685]
[1766503488488,0.00513355,2922.7,2922.2,0.00513355]
[1766503488692,0.17371543,2923.4,2922.2,0.00513355]
[1766503489790,0.00513354,2923.1,2922.2,0.00513355]
[1766503491588,0.00258543,2923.4,2922.3,3.423]
[1766503491888,0.17109,2924.1,2922.3,3.423]
[1766503492088,0.17279001,2924.1,2922.3,3.423]
[1766503492891,0.17610966,2924.1,2922.3,3.423]
[1766503493087,0.17440965,2924.1,2922.3,3.423]
[1766503496392,0.00331965,2924.1,2922.3,3.423]
[1766503496996,0.1711,2923.9,2922.3,3.423]
[1766503497591,0.17111,2923.8,2922.3,3.423]
[1766503498090,40.97111,2923.8,2922.3,3.423]
[1766503498299,0.00331965,2924.1,2922.6,2.09070723]
[1766503498493,0.00331965,2924.1,2922.7,2.09070723]
[1766503498795,0.00331965,2924.1,2922.3,3.423]
[1766503500197,0.00331965,2924.1,2922.2,0.00693355]
[1766503500398,0.1711,2923.9,2922.3,3.422]
[1766503501991,0.17111,2923.8,2922.3,3.422]
[1766503502193,0.17114,2923.3,2922.2,0.00693355]
[1766503502393,0.17114,2923.2,2922.2,0.00513355]
[1766503502602,0.17115,2923.1,2922.2,0.00513355]
[1766503503196,0.17116,2922.9,2922.2,3.355e-05]
[1766503504201,0.00510001,2922.8,2922.2,3.355e-05]
[1766503506597,0.17113,2923.5,2922.2,3.355e-05]
[1766503506802,0.00331965,2924.1,2922.5,2.09070723]
[1766503507000,0.00331965,2924.1,2922.9,2.09070723]
[1766503507198,0.17104,2924.9,2923.0,3.422]
[1766503508098,0.17524232,2924.9,2923.0,3.422]
[1766503508296,2.09070723,2924.8,2922.9,0.0016]
[1766503508498,2.09070723,2924.8,2922.3,3.69724399]
[1766503508700,0.17108,2924.4,2922.4,2.09070723]
[1766503508909,0.17108,2924.4,2922.4,5.74824983]
[1766503510001,0.17108,2924.4,2922.8,1.84364929]
[1766503511601,0.00420232,2924.9,2923.1,1.84364929]
[1766503511803,0.00420232,2924.9,2923.7,0.00513355]
[1766503512000,1.84364929,2924.4,2923.7,0.00870276]
[1766503512305,1.84364929,2924.4,2922.5,3.422]
[1766503512705,1.84364929,2924.7,2922.6,1.84364929]
[1766503512892,0.17108,2924.3,2922.6,1.84364929]
[1766503513099,0.00513354,2923.7,2923.2,0.00513355]
[1766503513300,1e-08,2923.7,2923.2,0.00513355]
[1766503516405,0.17108,2924.3,2923.2,1.84878284]
[1766503516806,0.17108,2924.3,2923.2,0.00513355]
[1766503517601,0.1711,2924.0,2923.2,0.00513355]
[1766503517812,1.84364929,2923.5,2922.6,0.00362425]
[1766503518314,1.84364929,2923.8,2922.6,0.00362425]
[1766503518714,0.17115,2923.2,2922.6,4.25e-06]
[1766503518901,1.84878284,2923.2,2921.6,5.631]
[1766503519099,0.17116,2923.0,2921.6,5.631]
[1766503520008,0.17116,2923.0,2922.0,0.00513355]
[1766503521116,0.17116,2922.9,2922.0,3.355e-05]
[1766503522419,0.00170001,2923.0,2921.4,0.0017]
[1766503522612,0.1712,2922.3,2920.4,3.422]
[1766503522814,0.1712,2922.2,2920.4,3.422]
[1766503523014,0.1712,2922.2,2920.6,0.00151662]
[1766503523513,2.0177252,2922.2,2921.1,0.00513355]
[1766503524417,0.17123,2921.8,2921.1,0.00513355]
[1766503524723,0.61280566,2921.7,2921.1,3.355e-05]
[1766503525108,1.84364929,2922.0,2921.1,3.355e-05]
[1766503525513,0.17125,2921.4,2920.6,0.00312365]
[1766503525708,0.17129,2920.8,2919.2,1.014]
[1766503525912,1.84364929,2920.7,2919.2,1.014]
[1766503526119,0.17129,2920.8,2919.4,0.00151662]
[1766503526314,0.17124,2921.5,2919.6,1.84364929]
[1766503526623,0.00513355,2920.8,2920.3,0.00513355]
[1766503527115,0.00513355,2920.8,2920.3,5.017e-05]
[1766503530322,0.17129,2920.7,2920.3,5.017e-05]
[1766503531320,2.01493929,2920.7,2919.6,0.0037405]
[1766503531824,0.17129,2920.7,2919.6,0.0037405]
[1766503532417,0.17129,2920.7,2919.9,0.00513355]
[1766503532618,0.00513355,2920.8,2919.9,0.00513355]
[1766503537424,0.17642355,2920.8,2919.9,0.00513355]
[1766503544935,0.17642355,2920.8,2919.9,1.84878284]
[1766503544936,0.00513355,2920.8,2919.9,1.84878284]
[1766503545131,0.17123,2921.7,2919.9,0.00513355]
[1766503545330,0.17123,2921.7,2920.0,1.84364929]
[1766503546036,0.00513355,2921.1,2919.9,0.00513355]
[1766503546435,0.17640355,2921.1,2919.9,0.00513355]
[1766503546937,0.00513355,2921.1,2919.9,0.00513355]
[1766503547238,0.00513355,2921.1,2920.0,1.84364929]
[1766503547438,3.59623,2921.7,2920.3,1.84364929]
[1766503547840,3.425,2921.7,2920.2,0.0669]
[1766503548034,3.425,2921.7,2920.0,1.84364929]
[1766503548444,0.00513355,2921.1,2920.0,1.84364929]
[1766503550546,0.00513355,2921.1,2919.9,0.00513355]
[1766503552339,1.84878284,2921.1,2919.9,0.00513355]
[1766503552941,0.17127,2921.0,2919.9,0.00513355]
[1766503558843,0.17128,2920.9,2919.9,0.00513355]
[1766503560348,0.00513355,2921.1,2920.2,1.84364929]
[1766503560649,0.17407591,2922.2,2920.9,1.84364929]
[1766503560847,0.17407591,2922.2,2920.7,3.425]
[1766503561048,0.17407591,2922.2,2920.8,1.84364929]
[1766503561445,0.00287591,2922.2,2921.1,1.84364929]
[1766503562145,0.00287591,2922.2,2920.8,1.84364929]
[1766503562354,0.00287591,2922.2,2920.9,1.84364929]
[1766503563249,0.17407591,2922.2,2920.7,3.425]
[1766503564451,0.00287591,2922.2,2921.2,1.84364929]
[1766503564650,3.59516,2922.9,2921.5,1.84364929]
[1766503565455,0.06670001,2923.1,2921.8,1.84364929]
[1766503565651,40.8,2923.6,2921.8,1.84627982]
[1766503565950,0.00359253,2923.1,2921.8,1.84627982]
[1766503567649,0.00359253,2923.1,2921.8,0.00263053]
[1766503568050,0.17474253,2923.1,2921.8,0.00263053]
[1766503570252,40.8,2923.6,2921.8,0.00263053]
[1766503570465,0.17108,2924.4,2922.8,2.09107338]
[1766503570653,0.17108,2924.4,2923.3,0.00513355]
[1766503570854,0.0666,2924.5,2923.3,0.00513355]
[1766503571253,3.423,2925.0,2923.3,0.00513355]
[1766503571254,0.0666,2924.6,2923.3,0.00513355]
[1766503571459,0.17107,2924.5,2923.3,0.00513355]
[1766503572565,0.17107,2924.4,2923.3,0.00513355]
[1766503572758,0.00323271,2924.6,2923.3,3.355e-05]
[1766503572759,2.09107338,2924.3,2923.3,3.355e-05]
[1766503572965,3.423,2924.2,2923.3,3.355e-05]
[1766503573766,0.00510001,2924.0,2923.3,3.355e-05]
[1766503578171,0.17620001,2924.0,2923.3,3.355e-05]
[1766503581164,0.00510001,2924.0,2923.3,3.355e-05]
[1766503581666,0.00323271,2924.6,2923.3,3.355e-05]
[1766503582362,0.00323271,2924.6,2923.3,2.09110693]
[1766503583373,0.00323271,2924.6,2923.3,3.355e-05]
[1766503584872,0.17429271,2924.6,2923.3,3.355e-05]
[1766503585479,0.17108,2924.4,2923.3,3.355e-05]
[1766503585661,0.00323271,2924.6,2923.3,3.355e-05]
[1766503587471,2.09107338,2924.3,2922.0,3.421]
[1766503587672,0.17111,2923.8,2922.0,3.421]
[1766503588476,0.17111,2923.8,2922.6,0.00513355]
[1766503589276,0.17114,2923.3,2922.6,3.355e-05]
[1766503589677,40.8,2923.2,2922.6,3.355e-05]
[1766503590376,40.80513354,2923.2,2922.6,3.355e-05]
[1766503591572,40.97627354,2923.2,2922.6,3.355e-05]
[1766503592681,0.17115,2923.1,2922.6,3.355e-05]
[1766503593075,40.80513354,2923.2,2922.6,3.355e-05]
[1766503594476,0.17116,2922.9,2922.6,3.355e-05]
[1766503596875,0.17121,2922.1,2920.0,2.09107338]
[1766503597189,0.17121,2922.1,2921.0,0.0009]
[1766503597484,0.17121,2922.1,2920.3,0.27193866]
[1766503597687,0.17121,2922.1,2920.1,3.422]
[1766503597879,0.17429956,2922.1,2920.1,3.42552462]
[1766503598085,0.00513355,2921.4,2920.8,0.00513355]
[1766503598879,0.17123,2921.8,2920.8,0.00513355]
[1766503599788,0.00308956,2922.1,2920.8,0.00513355]
[1766503600287,0.00308956,2922.1,2920.9,3.422]
[1766503600495,3.5932,2922.3,2920.9,3.422]
[1766503601101,0.1712,2922.3,2920.9,3.422]
[1766503601288,3.422,2923.0,2921.1,2.09107338]
[1766503601488,3.42610118,2923.0,2921.1,2.09107338]
[1766503601694,3.59726118,2923.0,2921.1,2.09107338]
[1766503601993,0.17117,2922.8,2921.1,2.09107338]
[1766503602193,0.17118,2922.6,2921.0,0.0045]
[1766503602498,0.17118,2922.6,2920.9,3.422]
[1766503603293,0.17118,2922.6,2920.9,5.51307338]
[1766503604203,0.17118,2922.5,2920.9,3.422]
[1766503606400,0.17119,2922.4,2920.9,3.422]
[1766503606704,3.42610118,2923.0,2920.9,3.422]
[1766503606891,0.1712,2922.3,2920.9,3.422]
[1766503607699,3.59726118,2923.0,2920.9,5.51307338]
[1766503607892,3.59726118,2923.0,2920.9,5.68435338]
[1766503613401,3.59726118,2923.0,2920.9,8.72474007]
[1766503614110,3.59726118,2923.0,2921.0,0.17127]
[1766503614507,3.59726118,2923.0,2921.0,3.21165669]
[1766503614706,3.59726118,2923.0,2921.3,2.09107338]
[1766503618307,0.17118,2922.6,2921.2,3.04038669]
[1766503619009,0.17118,2922.6,2921.4,2.09107338]
[1766503619209,0.17118,2922.6,2921.2,3.04038669]
[1766503619711,3.43040118,2923.0,2921.2,3.04038669]
[1766503619903,3.42610118,2923.0,2921.1,0.0043]
[1766503620103,3.42610118,2923.0,2921.0,2.26234338]
[1766503620308,0.17116,2922.9,2921.0,2.26234338]
[1766503620503,0.00410118,2923.0,2921.0,2.26234338]
[1766503620504,0.00410118,2923.0,2921.6,2.09107338]
[1766503620709,3.59412,2923.6,2922.0,2.09107338]
[1766503620909,3.59412,2923.6,2922.5,0.00513355]
[1766503621705,3.59749267,2923.6,2922.5,0.00889158]
[1766503622207,0.17113,2923.5,2922.5,0.00889158]
[1766503622514,0.17115,2923.2,2921.7,3.423]
[1766503622913,3.42637267,2923.6,2921.7,5.51407338]
[1766503623115,0.00337267,2923.6,2922.1,2.09107338]
[1766503623514,0.00513355,2923.1,2922.6,0.00513355]
[1766503628310,0.17449267,2923.6,2922.6,0.00513355]
[1766503629612,0.17108,2924.3,2923.1,2.09107338]
[1766503629911,0.17108,2924.3,2922.9,2.09107338]
[1766503630115,0.17108,2924.3,2922.7,3.422]
[1766503630710,0.17524536,2924.3,2922.7,3.422]
[1766503631516,0.17524536,2924.3,2922.9,2.09107338]
[1766503631709,0.00416536,2924.3,2922.9,2.09107338]
[1766503631910,0.00416536,2924.3,2923.4,1.84296708]
[1766503636320,3.422,2925.2,2923.7,1.84296708]
[1766503636516,3.422,2925.2,2924.2,0.00513355]
[1766503637225,3.42446567,2925.2,2924.2,0.00925095]
[1766503641828,3.42446567,2925.2,2924.2,0.00925095]
[1766503642923,0.17105,2924.8,2923.5,3.421]
[1766503643828,0.17105,2924.8,2923.9,0.00513355]
[1766503644020,0.17106,2924.7,2923.9,0.00513355]
[1766503645122,0.17107,2924.5,2923.9,3.355e-05]
[1766503646922,0.17108,2924.3,2923.9,3.355e-05]
[1766503651335,0.0045,2924.6,2923.9,3.355e-05]
[1766503651336,0.17106,2924.7,2923.9,3.355e-05]
[1766503651535,0.17107,2924.5,2923.9,3.355e-05]
[1766503651724,0.17107,2924.4,2923.9,3.355e-05]
[1766503654029,1.84296708,2924.3,2923.5,4.178e-05]
[1766503654237,0.17109,2924.1,2922.8,3.42]
[1766503654729,0.1711,2924.0,2922.7,0.0045]
[1766503654930,0.1711,2924.0,2922.5,2.1139267]
[1766503655132,0.1711,2924.0,2922.4,1.84296708]
[1766503655440,0.00513355,2923.5,2922.9,0.00513355]
[1766503659446,0.00513355,2923.5,2922.9,3.355e-05]
[1766503660744,0.17113,2923.4,2922.9,3.355e-05]
[1766503661751,0.00513355,2923.5,2922.9,3.355e-05]
[1766503663540,4.742,2924.4,2922.9,1.84300063]
[1766503664349,4.91307,2924.4,2922.9,3.355e-05]
[1766503664543,0.00513355,2923.9,2922.9,3.355e-05]
[1766503673360,0.00513355,2923.9,2923.1,1.84296708]
[1766503673561,0.17104,2924.9,2923.5,1.84296708]
[1766503674653,0.00513354,2924.5,2923.2,1.84296708]
[1766503674855,0.00513354,2924.5,2923.2,1.84416708]
[1766503675158,0.00513354,2924.5,2923.2,1.84296708]
[1766503675556,0.00513354,2924.5,2923.0,3.07115355]
[1766503675557,0.00513354,2924.5,2923.1,0.0012]
[1766503675961,0.00513354,2924.5,2922.9,3.0711871]
[1766503676356,0.00513354,2924.5,2922.9,3.355e-05]
[1766503676958,0.17620354,2924.5,2922.9,3.355e-05]
[1766503677862,1.84296708,2924.0,2922.9,3.355e-05]
[1766503678060,1.84296708,2924.3,2922.9,3.355e-05]
[1766503678662,0.17109,2924.1,2922.9,3.355e-05]